bitfinex/quotes_BTCUSD_20240820
["timestamp","ask_amount","ask_price","bid_price","bid_amount"]
[1724165565923,0.01123809,59667.0,59663.0,0.0317687]
[1724165566131,0.01123809,59667.0,59665.0,0.268163]
[1724165566369,0.01123809,59667.0,59666.0,0.134079]
[1724165566546,0.134062,59674.0,59667.0,0.134076]
[1724165566747,0.16400298,59673.0,59670.0,0.268139]
[1724165566961,0.16400298,59673.0,59664.0,0.02153687]
[1724165566962,0.16400298,59673.0,59672.0,0.1805]
[1724165566963,0.01126028,59673.0,59672.0,0.1805]
[1724165567200,0.01126028,59673.0,59672.0,0.36047452]
[1724165567399,0.00083988,59681.0,59674.0,0.134061]
[1724165567754,0.00083988,59684.0,59674.0,0.402184]
[1724165567962,0.00083988,59684.0,59673.0,0.134063]
[1724165568161,0.134047,59681.0,59673.0,0.1658317]
[1724165568372,0.00083988,59680.0,59673.0,0.1658307]
[1724165568589,0.13488788,59680.0,59673.0,0.0317687]
[1724165568850,0.00083988,59680.0,59673.0,0.1658317]
[1724165569052,0.00083988,59680.0,59674.0,0.134061]
[1724165569250,0.00083988,59680.0,59674.0,0.02153687]
[1724165569653,0.00083988,59680.0,59672.0,0.1805]
[1724165569854,0.134051,59679.0,59672.0,0.1805]
[1724165570067,0.00083988,59678.0,59672.0,0.1805]
[1724165570269,0.01157506,59674.0,59673.0,0.40219]
[1724165570470,0.49229154,59685.0,59674.0,0.402184]
[1724165570698,0.00083988,59682.0,59674.0,0.402184]
[1724165571099,0.134035,59686.0,59674.0,0.402184]
[1724165571321,0.134037,59685.0,59674.0,0.402184]
[1724165571521,0.134042,59683.0,59674.0,0.402184]
[1724165571720,0.00083988,59682.0,59674.0,0.402184]
[1724165571927,0.00083988,59682.0,59674.0,0.134061]
[1724165572326,0.00083988,59682.0,59674.0,0.402184]
[1724165572758,0.00083988,59682.0,59674.0,0.134061]
[1724165573339,0.067117,59691.0,59676.0,0.6002]
[1724165573539,0.067117,59691.0,59673.0,0.00335149]
[1724165573540,0.00174628,59707.0,59690.0,0.6002]
[1724165573737,0.00174628,59707.0,59694.0,0.678333]
[1724165573738,0.16400298,59706.0,59694.0,0.678333]
[1724165573939,0.17558162,59706.0,59700.0,0.268005]
[1724165574140,0.134002,59701.0,59695.0,0.1899]
[1724165574392,0.00083988,59700.0,59695.0,0.1899]
[1724165574542,0.01240943,59700.0,59696.0,0.01899]
[1724165574737,0.01156955,59700.0,59696.0,0.287012]
[1724165575106,0.16400298,59706.0,59702.0,0.133998]
[1724165575318,0.16400298,59706.0,59703.0,0.1473948]
[1724165575536,0.16400298,59706.0,59703.0,0.0133998]
[1724165575739,0.16400298,59706.0,59698.0,0.4103]
[1724165575740,0.00083988,59705.0,59698.0,0.4103]
[1724165575939,0.55920298,59704.0,59695.0,0.1899]
[1724165576149,0.00083988,59703.0,59695.0,0.1899]
[1724165576355,0.16400298,59702.0,59696.0,0.0457935]
[1724165576558,0.16400298,59702.0,59690.0,0.648449]
[1724165576559,0.364,59697.0,59690.0,0.1879]
[1724165576733,0.364,59697.0,59682.0,0.268085]
[1724165576734,0.134022,59692.0,59684.0,0.1879]
[1724165576992,0.16484286,59691.0,59684.0,0.1879]
[1724165577287,0.268002,59701.0,59685.0,0.0455987]
[1724165577288,0.134001,59701.0,59685.0,0.0455987]
[1724165577536,0.268011,59699.0,59690.0,0.134024]
[1724165577804,0.134011,59697.0,59684.0,0.1879]
[1724165578071,0.16484286,59696.0,59689.0,0.134027]
[1724165578296,0.17642164,59696.0,59689.0,0.134027]
[1724165578533,0.17642164,59696.0,59690.0,0.134024]
[1724165579182,0.17642164,59696.0,59689.0,0.134027]
[1724165579183,0.31043364,59696.0,59689.0,0.134027]
[1724165579386,0.31043364,59696.0,59690.0,0.0402089]
[1724165579822,0.54042164,59696.0,59684.0,0.1879]
[1724165580035,0.268059,59689.0,59679.0,0.1899]
[1724165580255,0.16484286,59688.0,59679.0,0.1899]
[1724165580464,0.134035,59686.0,59679.0,0.1899]
[1724165580680,0.17659408,59688.0,59668.0,0.5652]
[1724165580681,0.2681,59680.0,59668.0,0.5652]
[1724165580915,0.38,59684.0,59668.0,0.1852]
[1724165580916,0.134066,59672.0,59668.0,0.1852]
[1724165581129,0.16484286,59679.0,59668.0,0.1852]
[1724165581130,0.16484286,59671.0,59668.0,0.1852]
[1724165581548,0.16484286,59671.0,59646.0,0.268248]
[1724165581549,0.01182593,59670.0,59655.0,0.5701]
[1724165581774,0.364,59666.0,59655.0,0.5701]
[1724165582013,0.16400298,59666.0,59655.0,0.5701]
[1724165582224,0.01175478,59665.0,59664.0,0.134084]
[1724165582453,0.01175478,59665.0,59664.0,0.4424779]
[1724165582694,0.632097,59680.0,59671.0,0.1901]
[1724165582695,0.268101,59679.0,59671.0,0.1901]
[1724165582917,0.268101,59679.0,59653.0,0.268215]
[1724165582918,0.134057,59677.0,59669.0,0.134072]
[1724165583125,0.16400298,59678.0,59666.0,0.458258]
[1724165583126,0.16400298,59676.0,59666.0,0.1901]
[1724165583334,0.00727684,59685.0,59667.0,0.00335161]
[1724165583541,0.1964,59693.0,59667.0,0.00335161]
[1724165583542,0.392,59691.0,59668.0,0.77470298]
[1724165583756,0.49229154,59688.0,59672.0,0.5877]
[1724165583964,0.0002,59691.0,59690.0,0.134025]
[1724165584148,0.0002,59691.0,59674.0,0.268123]
[1724165584149,0.16420298,59691.0,59689.0,0.1901]
[1724165584811,0.0002,59691.0,59690.0,0.134025]
[1724165585029,0.0002,59691.0,59690.0,0.16446909]
[1724165585249,0.0002,59691.0,59690.0,0.70057109]
[1724165585729,0.0002,59691.0,59690.0,0.03044409]
[1724165585952,0.0002,59691.0,59690.0,0.43252009]
[1724165586152,0.0002,59691.0,59690.0,0.70057109]
[1724165586665,0.0002,59691.0,59690.0,0.96862209]
[1724165586865,0.0002,59691.0,59690.0,1.34392209]
[1724165587520,0.0002,59691.0,59690.0,1.77597607]
[1724165587718,0.49229154,59706.0,59705.0,0.318992]
[1724165587961,0.49229154,59706.0,59705.0,0.25377]
[1724165588162,0.0009064,59707.0,59705.0,0.185]
[1724165588376,0.16490938,59707.0,59705.0,0.185]
[1724165588780,0.01183815,59706.0,59705.0,0.318992]
[1724165588964,0.01183815,59706.0,59705.0,0.586976]
[1724165589180,0.0009064,59707.0,59705.0,0.586976]
[1724165589181,0.0009064,59707.0,59706.0,0.401968]
[1724165589403,0.0009064,59707.0,59706.0,0.133989]
[1724165589623,0.0009064,59707.0,59706.0,0.67329659]
[1724165589825,0.00069424,59707.0,59706.0,1.344026]
[1724165591076,0.00069424,59707.0,59706.0,1.053047]
[1724165591516,0.00069424,59707.0,59706.0,1.344026]
[1724165591943,0.00069424,59707.0,59706.0,1.97660798]
[1724165592176,0.0011053,59719.0,59718.0,1.002387]
[1724165592440,0.0011053,59719.0,59718.0,1.270312]
[1724165592652,0.01313492,59719.0,59718.0,1.538237]
[1724165592909,0.0011053,59719.0,59718.0,1.538237]
[1724165593110,0.0011053,59719.0,59718.0,2.09616498]
[1724165593315,0.00907501,59727.0,59726.0,0.866325]
[1724165593525,0.00907501,59727.0,59726.0,1.668915]
[1724165593786,0.00907501,59727.0,59726.0,1.87718086]
[1724165594016,0.0002,59739.0,59726.0,2.14607086]
[1724165594243,0.00907501,59766.0,59726.0,2.14607086]
[1724165594244,0.00907501,59761.0,59758.0,0.133873]
[1724165594455,0.00907501,59761.0,59758.0,1.2066983]
[1724165594671,0.00907501,59761.0,59758.0,1.71086927]
[1724165594889,0.00907501,59761.0,59758.0,1.32008203]
[1724165595105,0.00907501,59761.0,59758.0,0.7662063]
[1724165595331,0.00907501,59761.0,59758.0,1.22095528]
[1724165595763,0.009075,59790.0,59776.0,0.669162]
[1724165595973,0.009075,59790.0,59776.0,0.2007482]
[1724165596188,0.009075,59790.0,59767.0,0.1]
[1724165596189,0.00083988,59789.0,59767.0,0.1]
[1724165596392,0.009075,59790.0,59760.0,0.0637]
[1724165596393,0.16491049,59777.0,59760.0,0.0637]
[1724165596603,0.16491049,59777.0,59760.0,0.1637]
[1724165596813,0.133844,59771.0,59760.0,0.1]
[1724165597007,0.16484286,59770.0,59762.0,0.133863]
[1724165597236,0.16400298,59770.0,59762.0,0.133863]
[1724165597450,0.16400298,59770.0,59761.0,0.069792]
[1724165597651,0.16400298,59770.0,59762.0,0.133863]
[1724165598081,0.16400298,59770.0,59761.0,0.267732]
[1724165598284,0.00083988,59769.0,59751.0,0.1816]
[1724165598487,0.16400298,59768.0,59756.0,0.133876]
[1724165598693,0.00083988,59767.0,59753.0,0.133883]
[1724165598894,0.133864,59762.0,59752.0,0.152045]
[1724165599217,0.133879,59756.0,59746.0,0.133899]
[1724165599433,0.54164286,59755.0,59747.0,0.0133899]
[1724165599641,0.54164286,59755.0,59747.0,0.1472859]
[1724165599850,0.54164286,59755.0,59748.0,0.133894]
[1724165600260,0.54164286,59755.0,59747.0,0.0133899]
[1724165600470,0.133888,59752.0,59742.0,0.133907]
[1724165600686,0.16484286,59751.0,59743.0,0.133906]
[1724165601104,0.16484286,59751.0,59744.0,0.133903]
[1724165601308,0.16400298,59751.0,59739.0,0.267831]
[1724165601512,0.29789098,59751.0,59742.0,0.133908]
[1724165601718,0.16400298,59751.0,59743.0,0.133906]
[1724165602130,0.16400298,59751.0,59744.0,0.133904]
[1724165602334,0.16400298,59751.0,59740.0,0.0451131]
[1724165602533,0.16400298,59751.0,59742.0,0.133908]
[1724165602745,0.16400298,59751.0,59745.0,0.133902]
[1724165602954,0.16400298,59751.0,59742.0,0.267817]
[1724165603185,0.16400298,59751.0,59741.0,0.04301539]
[1724165603395,0.29789298,59751.0,59742.0,0.133908]
[1724165603603,0.16400298,59751.0,59743.0,0.133906]
[1724165604217,0.133898,59747.0,59737.0,0.133918]
[1724165604424,0.03094487,59746.0,59739.0,0.133914]
[1724165604856,0.3768,59755.0,59739.0,0.00334782]
[1724165605068,0.54080298,59755.0,59754.0,0.133882]
[1724165605274,0.3755,59762.0,59755.0,0.13388]
[1724165605481,0.3755,59762.0,59755.0,0.415028]
[1724165605690,0.3755,59762.0,59755.0,0.682788]
[1724165606045,0.1849,59770.0,59755.0,0.950548]
[1724165606046,0.3822,59768.0,59755.0,0.950548]
[1724165606245,0.3822,59768.0,59755.0,1.335248]
[1724165606677,0.3822,59776.0,59755.0,0.56509098]
[1724165606831,0.16400298,59775.0,59762.0,0.267727]
[1724165607031,0.3822,59776.0,59756.0,0.24351208]
[1724165607241,0.009253,59779.0,59775.0,0.16400298]
[1724165607462,0.142819,59806.0,59790.0,0.669007]
[1724165607670,0.009053,59806.0,59790.0,0.669007]
[1724165607955,0.009053,59806.0,59790.0,1.22361298]
[1724165608138,0.009053,59806.0,59790.0,0.95600998]
[1724165608352,0.373053,59806.0,59790.0,0.501404]
[1724165608557,0.373053,59806.0,59790.0,0.133801]
[1724165608558,0.267545,59803.0,59790.0,0.133801]
[1724165608775,0.009053,59806.0,59790.0,0.57878708]
[1724165608983,0.009053,59806.0,59790.0,0.7053871]
[1724165609187,0.009053,59806.0,59790.0,0.4147841]
[1724165609396,0.3642,59799.0,59790.0,0.0133801]
[1724165609606,0.3978,59792.0,59784.0,0.1]
[1724165609807,0.3978,59792.0,59786.0,0.133809]
[1724165610010,0.3978,59792.0,59782.0,0.267636]
[1724165610219,0.16400298,59790.0,59779.0,0.133825]
[1724165610421,0.16400298,59790.0,59780.0,0.14893789]
[1724165610422,0.133804,59789.0,59780.0,0.14893789]
[1724165610623,0.3978,59792.0,59771.0,0.1812]
[1724165610624,0.16400298,59788.0,59771.0,0.1812]
[1724165610832,0.16484286,59788.0,59779.0,0.133824]
[1724165611043,0.00083988,59787.0,59771.0,0.1812]
[1724165611249,0.00083988,59787.0,59756.0,0.49329154]
[1724165611250,0.4358,59780.0,59769.0,0.133848]
[1724165611452,0.4358,59780.0,59763.0,0.1836]
[1724165611453,0.3796,59779.0,59771.0,0.49229154]
[1724165611658,0.0009064,59791.0,59770.0,0.0133848]
[1724165611659,0.0009064,59791.0,59790.0,0.133801]
[1724165611867,0.0009064,59791.0,59790.0,0.4147841]
[1724165612077,0.0009064,59791.0,59790.0,0.6823871]
[1724165612289,0.0009064,59791.0,59790.0,0.4147841]
[1724165612490,0.0009064,59791.0,59790.0,0.6823871]
[1724165612699,0.0009064,59791.0,59790.0,0.1471811]
[1724165613115,0.0009064,59791.0,59790.0,0.0133801]
[1724165613744,0.0009064,59791.0,59782.0,0.267636]
[1724165613959,0.0009064,59791.0,59790.0,0.401404]
[1724165614168,0.0009064,59791.0,59790.0,0.133801]
[1724165614626,0.0009064,59791.0,59786.0,0.267619]
[1724165614832,0.0009064,59791.0,59789.0,0.133803]
[1724165615050,0.0009064,59791.0,59778.0,0.00334505]
[1724165615251,0.0009064,59791.0,59788.0,0.267612]
[1724165615459,0.0009064,59791.0,59780.0,0.00334497]
[1724165615666,0.0009064,59791.0,59788.0,0.133804]
[1724165615829,0.0009064,59791.0,59779.0,0.01033451]
[1724165616009,0.0009064,59791.0,59788.0,0.133804]
[1724165616217,0.0009064,59791.0,59790.0,0.133801]
[1724165616414,0.0009064,59791.0,59789.0,0.0133804]
[1724165616634,0.0009064,59791.0,59788.0,0.133804]
[1724165616836,0.0009064,59791.0,59789.0,0.133803]
[1724165617360,0.0009064,59791.0,59784.0,0.267627]
[1724165617592,0.26763,59784.0,59758.0,0.195323]
[1724165617804,0.133827,59779.0,59772.0,0.49229154]
[1724165618012,0.00083988,59779.0,59763.0,0.13386]
[1724165618248,0.16400298,59778.0,59758.0,0.195323]
[1724165618455,0.26773,59762.0,59758.0,0.000823]
[1724165618668,0.267723,59764.0,59758.0,0.000823]
[1724165618911,0.791913,59759.0,59758.0,0.000823]
[1724165619105,0.95591598,59759.0,59758.0,0.000823]
[1724165619486,0.68817398,59759.0,59758.0,0.000823]
[1724165619617,0.3903,59759.0,59758.0,0.000823]
[1724165619825,0.268668,59776.0,59758.0,0.000823]
[1724165619826,0.133849,59769.0,59758.0,0.000823]
[1724165620025,0.3903,59774.0,59759.0,0.267741]
[1724165620334,0.16400298,59773.0,59758.0,0.000823]
[1724165620549,0.133848,59770.0,59760.0,0.133867]
[1724165620771,0.16484286,59773.0,59760.0,0.0402439]
[1724165620772,0.16400298,59773.0,59760.0,0.0402439]
[1724165620887,0.133849,59769.0,59760.0,0.1741119]
[1724165621086,0.133849,59769.0,59760.0,0.0402439]
[1724165621290,0.657978,59774.0,59761.0,0.0033463]
[1724165621495,0.4113,59782.0,59762.0,0.35100298]
[1724165621689,0.133824,59780.0,59765.0,0.4136]
[1724165621953,0.133824,59780.0,59763.0,0.06245932]
[1724165621954,0.133836,59775.0,59767.0,0.133852]
[1724165622094,0.133831,59777.0,59767.0,0.267703]
[1724165622289,0.267657,59778.0,59768.0,0.0301162]
[1724165622494,0.267657,59778.0,59768.0,0.1606193]
[1724165622734,0.133845,59771.0,59767.0,0.0033459]
[1724165622943,0.133838,59774.0,59763.0,0.03945932]
[1724165623144,0.267673,59775.0,59763.0,0.03945932]
[1724165623351,0.133855,59766.0,59758.0,0.000823]
[1724165623557,0.267715,59765.0,59758.0,0.000823]
[1724165623727,0.133865,59762.0,59758.0,0.000823]
[1724165623930,0.26772,59764.0,59758.0,0.000823]
[1724165624296,0.26773,59762.0,59758.0,0.000823]
[1724165624424,0.26772,59764.0,59758.0,0.000823]
[1724165624768,0.26773,59762.0,59758.0,0.000823]
[1724165625074,0.133871,59759.0,59758.0,0.000823]
[1724165625428,0.401613,59759.0,59758.0,0.000823]
[1724165625632,0.133871,59759.0,59758.0,0.000823]
[1724165626214,0.401613,59759.0,59758.0,0.000823]
[1724165626413,0.133871,59759.0,59758.0,0.000823]
[1724165626613,0.3801,59775.0,59760.0,0.267735]
[1724165626834,0.3801,59775.0,59758.0,0.000823]
[1724165626835,0.16484286,59774.0,59761.0,0.0653558]
[1724165627035,0.16584286,59774.0,59758.0,0.000823]
[1724165627243,0.133871,59759.0,59758.0,0.000823]
[1724165627447,1e-08,59759.0,59758.0,0.000823]
[1724165627659,0.13387101,59759.0,59758.0,0.000823]
[1724165628131,1e-08,59759.0,59758.0,0.000823]
[1724165628335,0.13387101,59759.0,59758.0,0.0142935]
[1724165628502,0.66935501,59759.0,59758.0,0.000823]
[1724165629648,1.02955799,59759.0,59758.0,0.000823]
[1724165630005,1.29729999,59759.0,59758.0,0.000823]
[1724165630607,1.70479999,59759.0,59758.0,0.000823]
[1724165631685,2.21479999,59759.0,59758.0,0.000823]
[1724165631837,1.70479999,59759.0,59758.0,0.000823]
[1724165632042,1.43705799,59759.0,59758.0,0.000823]
[1724165632973,1.70479999,59759.0,59758.0,0.000823]
[1724165635376,1.07685501,59759.0,59758.0,0.000823]
[1724165635580,0.80911301,59759.0,59758.0,0.000823]
[1724165635774,1.24085799,59759.0,59758.0,0.000823]
[1724165637362,2.24859999,59759.0,59758.0,0.000823]
[1724165638788,2.24950529,59759.0,59758.0,0.000823]
[1724165640151,1.60950529,59759.0,59758.0,0.000823]
[1724165640564,0.40251831,59759.0,59758.0,0.000823]
[1724165640973,0.67026031,59759.0,59758.0,0.000823]
[1724165641189,0.58490829,59759.0,59735.0,0.04982401]
[1724165641422,0.58490829,59759.0,59713.0,0.31776901]
[1724165641423,0.4059,59732.0,59713.0,0.31776901]
[1724165641631,0.133954,59722.0,59716.0,0.0517069]
[1724165642023,1.2459,59732.0,59716.0,0.0517069]
[1724165642024,0.267883,59728.0,59716.0,0.0517069]
[1724165642246,0.49229154,59721.0,59716.0,0.0517069]
[1724165642455,0.49229154,59721.0,59708.0,0.1837]
[1724165642456,0.4363,59717.0,59708.0,0.1837]
[1724165642669,0.134005,59699.0,59698.0,0.19193]
[1724165642876,0.00083988,59714.0,59698.0,0.251033]
[1724165643093,0.16400298,59713.0,59698.0,0.251033]
[1724165643300,0.16400298,59713.0,59698.0,0.00823]
[1724165643301,0.134005,59699.0,59698.0,0.00823]
[1724165643509,0.402016,59699.0,59698.0,0.00823]
[1724165644535,0.83402998,59699.0,59698.0,0.00823]
[1724165644804,1.10204098,59699.0,59698.0,0.00823]
[1724165645012,0.133991,59706.0,59698.0,0.00823]
[1724165645221,0.13399,59706.0,59698.0,0.00823]
[1724165645436,0.3771,59709.0,59699.0,0.040393]
[1724165645662,0.54110298,59709.0,59699.0,0.040393]
[1724165646327,0.267953,59712.0,59700.0,0.37410298]
[1724165646545,0.133978,59711.0,59700.0,0.50810498]
[1724165646768,0.267931,59717.0,59702.0,0.133998]
[1724165646980,0.133984,59709.0,59701.0,0.0422726]
[1724165647187,0.49229154,59716.0,59702.0,0.023]
[1724165647188,0.133986,59708.0,59702.0,0.023]
[1724165647395,0.133992,59706.0,59701.0,0.0422726]
[1724165647603,0.133992,59706.0,59700.0,0.2101]
[1724165647604,0.49229154,59716.0,59702.0,0.02606026]
[1724165647810,0.270904,59723.0,59700.0,0.1871]
[1724165647811,0.134001,59701.0,59700.0,0.1871]
[1724165648043,0.267944,59714.0,59700.0,0.1871]
[1724165648301,0.16400298,59713.0,59701.0,0.019533]
[1724165648514,0.133993,59705.0,59701.0,0.019533]
[1724165648725,0.267953,59712.0,59701.0,0.019533]
[1724165648936,0.103,59725.0,59702.0,0.4184863]
[1724165648937,0.49229154,59714.0,59702.0,0.4184863]
[1724165649138,0.669982,59703.0,59702.0,0.0214863]
[1724165649351,0.267977,59707.0,59702.0,0.0214863]
[1724165649352,0.133993,59705.0,59702.0,0.0214863]
[1724165649569,0.5099,59715.0,59698.0,0.00823]
[1724165649570,0.267966,59710.0,59704.0,0.5964]
[1724165649781,0.267896,59725.0,59710.0,0.26796]
[1724165649992,0.62626454,59714.0,59711.0,0.023]
[1724165650198,0.133981,59710.0,59705.0,0.4041]
[1724165650409,0.414,59721.0,59706.0,0.06172586]
[1724165650410,0.133972,59714.0,59706.0,0.06172586]
[1724165650620,0.414,59721.0,59706.0,0.06172586]
[1724165650621,0.00083988,59720.0,59706.0,0.06172586]
[1724165650826,0.16400298,59721.0,59706.0,0.06172586]
[1724165651032,0.267935,59716.0,59707.0,0.02549512]
[1724165651237,0.00083988,59720.0,59707.0,0.02549512]
[1724165651444,0.43276086,59720.0,59707.0,0.02549512]
[1724165651653,0.16484286,59720.0,59705.0,0.4041]
[1724165651869,0.26795,59713.0,59705.0,0.4041]
[1724165652154,0.133979,59711.0,59705.0,0.4041]
[1724165652363,0.133979,59711.0,59706.0,0.05964]
[1724165652578,0.133984,59709.0,59706.0,0.05964]
[1724165652782,0.133981,59710.0,59706.0,0.05964]
[1724165652992,0.133981,59710.0,59707.0,0.02758098]
[1724165653217,0.133984,59709.0,59707.0,0.02758098]
[1724165653444,0.26795,59713.0,59707.0,0.02758098]
[1724165653445,0.267962,59710.0,59707.0,0.02758098]
[1724165653652,0.267953,59712.0,59708.0,0.05964]
[1724165653855,0.133983,59709.0,59708.0,0.05964]
[1724165654059,0.267953,59712.0,59708.0,0.05964]
[1724165654060,0.133981,59710.0,59708.0,0.05964]
[1724165654753,0.49229154,59714.0,59708.0,0.05964]
[1724165654960,0.26400298,59726.0,59709.0,0.02758098]
[1724165655169,0.00776801,59725.0,59709.0,0.02758098]
[1724165655372,0.133975,59713.0,59709.0,0.02758098]
[1724165655573,0.133976,59712.0,59709.0,0.02758098]
[1724165655783,0.133979,59711.0,59709.0,0.02758098]
[1724165655989,0.26795,59713.0,59709.0,0.02758098]
[1724165655990,0.133976,59712.0,59709.0,0.02758098]
[1724165656419,0.133974,59713.0,59709.0,0.02758098]
[1724165656622,0.133974,59713.0,59710.0,0.016157]
[1724165656824,0.133976,59712.0,59710.0,0.016157]
[1724165657244,0.133976,59712.0,59709.0,0.02758098]
[1724165657454,0.13398,59710.0,59709.0,0.02758098]
[1724165657670,0.267944,59714.0,59709.0,0.02758098]
[1724165657879,0.133981,59710.0,59704.0,0.1923]
[1724165658084,0.26795,59713.0,59704.0,0.1923]
[1724165658290,0.133979,59711.0,59704.0,0.326294]
[1724165658511,0.267935,59716.0,59706.0,0.133989]
[1724165658758,0.267935,59716.0,59707.0,0.00334925]
[1724165658759,0.133975,59713.0,59707.0,0.00334925]
[1724165658971,0.133976,59712.0,59708.0,0.03296383]
[1724165659188,0.267941,59715.0,59708.0,0.03296383]
[1724165659398,0.267919,59720.0,59708.0,0.03296383]
[1724165659612,0.85,59720.0,59711.0,0.133977]
[1724165659857,0.267925,59719.0,59712.0,0.05425715]
[1724165660062,0.133974,59713.0,59712.0,0.05425715]
[1724165660269,0.133972,59714.0,59712.0,0.05425715]
[1724165660486,0.3784,59727.0,59713.0,0.03296383]
[1724165660487,0.133967,59717.0,59713.0,0.03296383]
[1724165660703,0.00840314,59722.0,59713.0,0.03296383]
[1724165660928,0.267949,59713.0,59704.0,0.857686]
[1724165661148,0.267949,59713.0,59705.0,0.133991]
[1724165661359,0.267935,59716.0,59705.0,0.00334934]
[1724165661575,0.267935,59716.0,59708.0,0.133984]
[1724165661576,0.133972,59714.0,59708.0,0.133984]
[1724165662433,0.133967,59716.0,59709.0,0.133981]
[1724165662634,0.267933,59717.0,59712.0,0.000823]
[1724165662838,0.13397,59715.0,59712.0,0.000823]
[1724165663048,0.267934,59716.0,59712.0,0.000823]
[1724165663253,0.13397,59715.0,59712.0,0.000823]
[1724165663460,0.133967,59717.0,59712.0,0.000823]
[1724165663664,0.133969,59715.0,59713.0,0.0134805]
[1724165663958,0.00804951,59726.0,59719.0,0.267918]
[1724165664199,0.00804951,59726.0,59715.0,0.00334847]
[1724165664411,0.267886,59727.0,59714.0,0.72837]
[1724165664619,0.133957,59721.0,59714.0,0.72837]
[1724165664830,0.267909,59722.0,59714.0,0.5944]
[1724165665053,0.267909,59722.0,59712.0,0.000823]
[1724165665054,0.00801864,59733.0,59720.0,0.267914]
[1724165665266,0.49229154,59730.0,59721.0,0.290911]
[1724165665481,0.267873,59730.0,59722.0,0.0454914]
[1724165665694,0.267873,59730.0,59717.0,0.267927]
[1724165665695,0.133943,59727.0,59719.0,0.133959]
[1724165665902,0.133943,59727.0,59718.0,0.1]
[1724165666319,0.267847,59736.0,59722.0,0.133953]
[1724165666320,0.401809,59730.0,59722.0,0.133953]
[1724165666527,0.26786,59733.0,59718.0,0.1]
[1724165666528,0.44479015,59738.0,59723.0,0.01674367]
[1724165666736,0.133929,59733.0,59726.0,0.133944]
[1724165666946,0.133932,59732.0,59717.0,0.10334814]
[1724165667152,0.133932,59732.0,59725.0,0.133945]
[1724165667358,0.133934,59731.0,59726.0,0.0401844]
[1724165667557,0.267861,59733.0,59726.0,0.0401844]
[1724165667802,0.133941,59728.0,59718.0,0.267921]
[1724165668005,0.133941,59728.0,59721.0,0.133955]
[1724165668213,0.401812,59730.0,59722.0,0.133952]
[1724165668418,0.267844,59737.0,59722.0,0.0401876]
[1724165668620,0.133938,59729.0,59722.0,0.1741396]
[1724165668821,0.133938,59729.0,59723.0,0.133951]
[1724165669025,0.267844,59737.0,59724.0,0.31544846]
[1724165669231,0.13393,59733.0,59726.0,0.133944]
[1724165669433,0.13393,59733.0,59727.0,0.133942]
[1724165669634,0.133927,59734.0,59726.0,0.13729017]
[1724165669844,0.267844,59737.0,59727.0,0.04301592]
[1724165670037,0.13393,59733.0,59727.0,0.04301592]
[1724165670396,0.133932,59732.0,59727.0,0.04301592]
[1724165670594,0.133932,59732.0,59725.0,0.133946]
[1724165670977,0.133936,59730.0,59723.0,0.133951]
[1724165671221,0.133943,59727.0,59719.0,0.267921]
[1724165671385,0.133936,59730.0,59723.0,0.13395]
[1724165671609,0.001,59741.0,59724.0,0.013395]
[1724165671963,0.4368,59731.0,59716.0,0.1844]
[1724165672088,0.267899,59724.0,59716.0,0.1844]
[1724165672493,0.43187598,59730.0,59716.0,0.1844]
[1724165672494,0.133951,59723.0,59716.0,0.1844]
[1724165672699,0.133938,59729.0,59722.0,0.511853]
[1724165672928,0.3782,59737.0,59722.0,0.511853]
[1724165672929,0.3782,59737.0,59724.0,0.133947]
[1724165673125,0.267865,59732.0,59725.0,0.00334821]
[1724165673335,0.133937,59730.0,59723.0,0.133951]
[1724165673577,0.103,59742.0,59726.0,0.1852]
[1724165673578,0.267837,59738.0,59726.0,0.1852]
[1724165673777,0.3785,59750.0,59727.0,0.57600298]
[1724165673970,0.133909,59742.0,59734.0,0.133925]
[1724165674144,0.267811,59744.0,59735.0,0.01877488]
[1724165674341,0.267821,59742.0,59735.0,0.01877488]
[1724165674540,0.133913,59740.0,59735.0,0.01877488]
[1724165674745,0.133914,59740.0,59735.0,0.01877488]
[1724165674936,0.133914,59740.0,59736.0,0.04205669]
[1724165675139,0.00887345,59746.0,59736.0,0.04205669]
[1724165675140,0.133912,59741.0,59736.0,0.04205669]
[1724165675911,0.133909,59742.0,59736.0,0.04205669]
[1724165676101,0.133911,59741.0,59736.0,0.04205669]
[1724165676304,0.267811,59744.0,59736.0,0.17597769]
[1724165676509,0.3862,59755.0,59738.0,0.853636]
[1724165676716,0.133892,59750.0,59741.0,0.133909]
[1724165676920,0.13389,59751.0,59743.0,0.133906]
[1724165677131,0.133895,59748.0,59744.0,0.01877488]
[1724165677354,0.133902,59745.0,59744.0,0.01877488]
[1724165677580,0.133912,59741.0,59738.0,0.5858]
[1724165677785,0.133912,59741.0,59738.0,0.1982]
[1724165677986,0.133904,59744.0,59738.0,0.1982]
[1724165678195,0.133904,59744.0,59739.0,0.0332119]
[1724165678398,0.4368,59746.0,59738.0,0.1982]
[1724165678619,0.133923,59736.0,59732.0,0.1854]
[1724165678836,0.267841,59737.0,59732.0,0.1854]
[1724165679041,0.267841,59737.0,59733.0,0.01854]
[1724165679250,0.4368,59739.0,59727.0,0.375]
[1724165679465,0.55270298,59738.0,59726.0,0.1978]
[1724165679670,0.133929,59733.0,59727.0,0.04657]
[1724165679884,0.133921,59737.0,59727.0,0.04657]
[1724165680088,0.133921,59737.0,59730.0,0.133934]
[1724165680295,0.570716,59739.0,59733.0,0.133929]
[1724165680497,0.4368,59739.0,59734.0,0.3929]
[1724165680699,0.133909,59742.0,59735.0,0.133923]
[1724165680902,0.133909,59742.0,59736.0,0.04657]
[1724165681114,0.267815,59743.0,59736.0,0.04657]
[1724165681115,0.133911,59741.0,59736.0,0.04657]
[1724165681537,0.267816,59743.0,59736.0,0.04657]
[1724165681745,0.26782,59742.0,59737.0,0.04065098]
[1724165682149,0.267812,59744.0,59737.0,0.04065098]
[1724165682364,0.13391,59742.0,59737.0,0.04065098]
[1724165682594,0.13391,59742.0,59738.0,0.04657]
[1724165682795,0.133909,59742.0,59738.0,0.04657]